bitfinex-derivatives/quotes_SOLF0:USTF0_20250319
["timestamp","ask_amount","ask_price","bid_price","bid_amount"]
[1742397805381,0.05784561,131.67,131.65,13.96551944]
[1742397805564,0.05784561,131.67,131.66,43.94551944]
[1742397805968,0.05784561,131.67,131.66,51.54061944]
[1742397806170,14.02336505,131.67,131.64,30.03457929]
[1742397806371,21.61816505,131.67,131.64,37.63057929]
[1742397806871,21.61816505,131.67,131.64,30.03457929]
[1742397807274,21.61816505,131.67,131.64,37.63057929]
[1742397808179,13.96551944,131.65,131.64,0.05457929]
[1742397808675,0.05784561,131.67,131.64,0.05457929]
[1742397810578,13.96551944,131.63,131.61,29.98]
[1742397810774,13.96551944,131.62,131.61,29.98]
[1742397811174,21.56291944,131.62,131.61,29.98]
[1742397813976,7.5974,131.62,131.61,29.98]
[1742397815179,21.61337273,131.63,131.61,29.98]
[1742397815569,7.64785329,131.63,131.61,37.5777]
[1742397816077,0.05075329,131.63,131.62,7.5974]
[1742397816270,0.05075329,131.63,131.62,21.56291944]
[1742397820672,3.9087,131.7,131.62,13.96551944]
[1742397820878,1.9734,131.7,131.66,13.96551944]
[1742397821190,9.5665,131.7,131.67,37.5541]
[1742397821379,4.2336,131.73,131.67,37.5541]
[1742397821380,4.2336,131.73,131.67,43.92551944]
[1742397821675,13.96551944,131.72,131.67,43.92551944]
[1742397821877,7.64769712,131.71,131.69,0.05642886]
[1742397822081,21.61321656,131.71,131.69,0.05642886]
[1742397822379,13.96551944,131.7,131.69,0.05642886]
[1742397823281,21.55831944,131.7,131.69,0.05642886]
[1742397823575,21.55831944,131.7,131.62,6.2378]
[1742397823576,13.96551944,131.66,131.62,29.96]
[1742397823782,13.96551944,131.65,131.62,29.96]
[1742397823974,13.96551944,131.65,131.63,7.5966]
[1742397824581,21.60936149,131.65,131.63,0.0542276]
[1742397824780,13.96551944,131.64,131.63,0.0542276]
[1742397825978,13.96551944,131.64,131.6,29.96]
[1742397826178,13.96551944,131.61,131.6,29.96]
[1742397826483,13.96551944,131.61,131.59,304.34170128]
[1742397826685,21.56381944,131.61,131.59,304.34170128]
[1742397826884,13.96551944,131.61,131.59,304.34170128]
[1742397827187,0.05333601,131.61,131.59,304.39551842]
[1742397827379,7.5986,131.6,131.59,0.05381714]
[1742397828184,7.6004,131.57,131.55,29.94]
[1742397828982,7.6004,131.57,131.54,269.6217]
[1742397829182,7.6004,131.57,131.54,299.5617]
[1742397829386,7.6564431,131.57,131.54,299.61254764]
[1742397829585,0.0560431,131.57,131.54,299.61254764]
[1742397829988,0.0560431,131.57,131.55,7.6013]
[1742397830190,0.0560431,131.57,131.54,292.01084764]
[1742397830790,0.0560431,131.57,131.56,7.6009]
[1742397831190,0.0560431,131.57,131.55,7.6012]
[1742397831691,0.0560431,131.57,131.54,292.01084764]
[1742397832484,0.0560431,131.57,131.56,7.6009]
[1742397839388,0.0560431,131.57,131.55,7.6014]
[1742397839594,0.0560431,131.57,131.55,37.5414]
[1742397840088,7.6566431,131.57,131.55,29.94]
[1742397841484,0.0560431,131.57,131.54,269.67254764]
[1742397841688,0.0560431,131.57,131.54,292.01084764]
[1742397842190,7.6565431,131.57,131.54,299.61244764]
[1742397842587,7.601,131.56,131.54,0.05084764]
[1742397842791,0.0560431,131.57,131.54,0.05084764]
[1742397843191,7.6565431,131.57,131.54,7.65234764]
[1742397843396,7.6565431,131.57,131.54,0.05084764]
[1742397843597,0.0560431,131.57,131.54,0.05084764]
[1742397843800,0.0560431,131.57,131.55,7.6012]
[1742397844096,0.0560431,131.57,131.54,0.05084764]
[1742397844700,0.0560431,131.57,131.56,7.6009]
[1742397844891,0.0560431,131.57,131.56,37.5409]
[1742397846090,0.0560431,131.57,131.56,29.94]
[1742397846285,7.6563431,131.57,131.56,29.94]
[1742397846595,7.6563431,131.57,131.54,29.99084764]
[1742397846793,0.0560431,131.57,131.54,29.99084764]
[1742397847192,0.0560431,131.57,131.56,7.6009]
[1742397847388,0.0560431,131.57,131.54,29.99084764]
[1742397848196,0.0560431,131.57,131.56,7.6009]
[1742397849098,0.0560431,131.57,131.55,29.94]
[1742397849099,0.0560431,131.57,131.55,37.5412]
[1742397849290,0.0560431,131.57,131.55,29.94]
[1742397849493,14.03156112,131.57,131.54,0.05084764]
[1742397849999,7.6013,131.56,131.54,0.05084764]
[1742397851195,7.6015,131.55,131.54,0.05084764]
[1742397851696,7.6012,131.56,131.54,0.05084764]
[1742397852200,21.84529792,131.56,131.5,29.94]
[1742397852498,25.78889792,131.56,131.5,37.544]
[1742397852699,25.78889792,131.56,131.49,262.12]
[1742397852900,21.84529792,131.54,131.49,292.06]
[1742397853196,25.78889792,131.56,131.49,292.06]
[1742397853400,7.65130554,131.53,131.5,0.05691935]
[1742397853595,0.04840554,131.53,131.5,0.05691935]
[1742397853792,0.04840554,131.53,131.51,7.6037]
[1742397854190,0.04840554,131.53,131.5,0.05691935]
[1742397854702,0.04840554,131.53,131.51,7.6035]
[1742397855301,0.04840554,131.53,131.5,0.05691935]
[1742397855502,0.04840554,131.53,131.52,7.6032]
[1742397856397,0.04840554,131.53,131.51,7.6035]
[1742397856604,0.04840554,131.53,131.5,0.05691935]
[1742397857505,0.04840554,131.53,131.52,7.6032]
[1742397857701,0.04840554,131.53,131.52,37.5432]
[1742397869212,7.6,131.58,131.52,37.5432]
[1742397869416,7.6,131.58,131.55,7.601]
[1742397870413,7.65322458,131.58,131.55,7.65847117]
[1742397870712,7.6003,131.57,131.55,7.65847117]
[1742397870917,0.05322458,131.58,131.55,29.97747117]
[1742397871716,0.05322458,131.58,131.57,7.6003]
[1742397872818,1.9473,131.62,131.6,7.5984]
[1742397873213,16.00146438,131.64,131.59,43.88466438]
[1742397874018,0.04868248,131.63,131.61,7.5977]
[1742397874908,0.04868248,131.63,131.62,7.5974]
[1742397875309,0.04868248,131.63,131.6,7.64721591]
[1742397875510,0.04868248,131.63,131.6,0.04891591]
[1742397875718,7.64578248,131.63,131.6,0.04891591]
[1742397876111,7.64578248,131.63,131.6,7.64721591]
[1742397878223,7.5974,131.62,131.6,7.64721591]
[1742397878722,7.598,131.61,131.6,0.04891591]
[1742397879426,21.56266438,131.61,131.6,0.04891591]
[1742397883436,23.55396438,131.62,131.6,0.04891591]
[1742397883731,9.5893,131.62,131.6,0.04891591]
[1742397884133,7.598,131.61,131.6,0.04891591]
[1742397884334,21.56266438,131.61,131.6,0.04891591]
[1742397885233,7.598,131.61,131.6,0.04891591]
[1742397894744,7.6009,131.56,131.55,263.52233917]
[1742397894942,7.6009,131.56,131.55,262.2]
[1742397895144,7.6009,131.56,131.54,29.88]
[1742397895740,7.6015,131.55,131.54,29.88]
[1742397895939,7.6015,131.55,131.54,29.93363575]
[1742397896149,21.56616438,131.55,131.54,0.05363575]
[1742397899045,13.96466438,131.55,131.54,0.05363575]
[1742397899245,21.56586438,131.56,131.54,0.05363575]
[1742397902350,21.56616438,131.55,131.54,0.05363575]
[1742397903246,13.96466438,131.53,131.5,262.12]
[1742397903445,13.96466438,131.52,131.5,262.12]
[1742397903652,7.6049,131.49,131.47,29.88]
[1742397903848,13.96466438,131.51,131.47,29.88]
[1742397904051,13.96466438,131.51,131.47,43.84466438]
[1742397904344,0.05084884,131.5,131.48,0.05280055]
[1742397905047,0.05084884,131.5,131.49,7.6049]
[1742397905247,0.05084884,131.5,131.49,21.56956438]
[1742397907152,0.05084884,131.5,131.48,7.65800055]
[1742397907358,0.05084884,131.5,131.48,0.05280055]
[1742397907550,0.05084884,131.5,131.48,29.93280055]
[1742397907853,13.96466438,131.49,131.48,0.05280055]
[1742397908053,14.01551322,131.5,131.48,0.05280055]
[1742397908352,0.05084884,131.5,131.48,0.05280055]
[1742397908751,0.05084884,131.5,131.48,7.65800055]
[1742397908949,0.05084884,131.5,131.48,0.05280055]
[1742397909546,7.65544884,131.5,131.48,0.05280055]
[1742397909749,0.05084884,131.5,131.48,0.05280055]
[1742397909946,7.65544884,131.5,131.48,0.05280055]
[1742397910356,0.05084884,131.5,131.48,0.05280055]
[1742397910557,7.6049,131.49,131.48,0.05280055]
[1742397914359,7.6049,131.49,131.44,262.2]
[1742397914360,21.86310456,131.49,131.44,262.2]
[1742397914560,21.86310456,131.49,131.44,292.06]
[1742397914761,21.86310456,131.49,131.44,299.6675]
[1742397915460,21.86310456,131.49,131.45,0.05725028]
[1742397916159,7.6058,131.48,131.45,7.66435028]
[1742397917558,7.6062,131.47,131.45,7.66435028]
[1742397917965,7.65919892,131.47,131.45,7.66435028]
[1742397919566,7.65919892,131.47,131.46,7.6067]
[1742397919567,0.05299892,131.47,131.46,7.6067]
[1742397922864,0.05299892,131.47,131.46,29.46980456]
[1742397923475,2.0086,131.53,131.46,21.86310456]
[1742397923767,21.86310456,131.55,131.48,21.86310456]
[1742397923967,7.6027,131.53,131.49,29.86]
[1742397924465,21.86310456,131.55,131.49,29.86]
[1742397924466,7.6024,131.54,131.49,29.86]
[1742397924666,0.05175951,131.52,131.5,0.05820063]
[1742397925064,0.05175951,131.52,131.51,7.6038]
[1742397925467,6.2155,131.57,131.5,21.92130519]
[1742397926067,7.6023,131.54,131.51,7.6033]
[1742397926278,6.2155,131.57,131.52,29.86]
[1742397926671,0.05847852,131.56,131.55,7.6012]
[1742397927771,0.05847852,131.56,131.54,7.6018]
[1742397929375,0.05847852,131.56,131.55,7.6015]
[1742397929971,0.05847852,131.56,131.55,37.4615]
[1742397932574,5.9255,131.62,131.58,7.5994]
[1742397932774,3.9291,131.62,131.58,37.4394]
[1742397933278,7.5983,131.61,131.58,37.4394]
[1742397933879,7.5987,131.6,131.58,29.88809522]
[1742397934177,0.05849074,131.61,131.58,29.88809522]
[1742397934574,7.5989,131.6,131.58,29.88809522]
[1742397934775,0.05849074,131.61,131.58,29.88809522]
[1742397935176,7.5986,131.6,131.58,29.88809522]
[1742397935674,7.65679074,131.61,131.58,29.88809522]
[1742397936072,0.05849074,131.61,131.58,37.48769522]
[1742397936474,0.05849074,131.61,131.58,29.88809522]
[1742397936871,0.05849074,131.61,131.59,7.5987]
[1742397938779,0.05849074,131.61,131.6,7.5986]
[1742397945293,0.05849074,131.61,131.6,21.55905872]
[1742397947195,14.01894946,131.61,131.58,0.04809522]
[1742397947495,13.96045872,131.59,131.53,13.96045872]
[1742397947695,7.6006,131.57,131.54,37.4017]
[1742397947892,13.96045872,131.59,131.54,29.8]
[1742397948592,7.6006,131.57,131.55,0.05104201]
[1742397948893,0.05719907,131.58,131.55,0.05104201]
[1742397949196,7.65729907,131.58,131.55,14.01150073]
[1742397949584,0.05719907,131.58,131.56,13.96045872]
[1742397949790,0.05719907,131.58,131.57,29.8]
[1742397950097,7.65689907,131.58,131.57,29.8]
[1742397953102,0.05719907,131.58,131.57,29.8]
[1742397953802,0.05719907,131.58,131.57,37.4003]
[1742397954300,0.05719907,131.58,131.57,29.8]
[1742397954701,0.05719907,131.58,131.57,37.4003]
[1742397954898,0.05719907,131.58,131.57,29.8]
[1742397956293,0.05719907,131.58,131.57,37.4003]
[1742397956804,21.83165796,131.65,131.59,7.5991]
[1742397957004,21.83165796,131.65,131.6,29.8]
[1742397958104,0.05546704,131.64,131.61,0.05243369]
[1742397958498,7.5972,131.63,131.61,0.05243369]
[1742397958803,0.05546704,131.64,131.61,0.05243369]
[1742397959003,0.05546704,131.64,131.61,7.65003369]
[1742397959301,7.5969,131.63,131.61,0.05243369]
[1742397959502,0.05546704,131.64,131.61,0.05243369]
[1742397959704,7.5974,131.62,131.61,0.05243369]
[1742397960204,0.05546704,131.64,131.61,0.05243369]
[1742397960406,7.5969,131.63,131.61,0.05243369]
[1742397960601,0.05546704,131.64,131.61,0.05243369]
[1742397960902,7.5974,131.63,131.61,0.05243369]
[1742397961105,0.05546704,131.64,131.61,0.05243369]
[1742397961505,7.5974,131.62,131.61,0.05243369]
[1742397961897,0.05546704,131.64,131.61,0.05243369]
[1742397962505,0.05546704,131.64,131.63,7.5969]
[1742397962802,0.05546704,131.64,131.63,37.3769]
[1742397963206,7.5943,131.68,131.65,7.5955]
[1742397963507,21.83165796,131.7,131.65,7.5955]
[1742397963801,7.5943,131.68,131.65,7.5955]
[1742397963995,21.83165796,131.7,131.64,7.596]
[1742397964195,0.05779304,131.68,131.63,29.78]
[1742397964399,7.5945,131.67,131.66,0.05198169]
[1742397965004,7.5963,131.64,131.63,29.78]
[1742397965202,21.83165796,131.68,131.63,29.78]
[1742397965400,7.5962,131.65,131.63,29.78]
[1742397966007,7.5962,131.65,131.63,37.3768]
[1742397966200,0.05586143,131.65,131.63,29.82820796]
[1742397966906,7.5936,131.69,131.63,51.65986592]
[1742397967203,21.83165796,131.7,131.63,51.61165796]
[1742397967403,7.5949,131.67,131.64,7.596]
[1742397968001,7.64357714,131.67,131.64,7.6456162]
[1742397970505,7.64357714,131.67,131.65,7.5957]
[1742397970708,7.64357714,131.67,131.66,29.78]
[1742397971614,0.04867714,131.67,131.66,29.78]
[1742397973013,0.04867714,131.67,131.66,37.3751]
[1742397974116,0.04867714,131.67,131.66,29.78]
[1742397974713,0.04867714,131.67,131.66,37.3751]
[1742397978423,0.04867714,131.67,131.66,29.78]
[1742397980122,7.64317714,131.67,131.66,29.78]
[1742397980421,0.04867714,131.67,131.66,37.3751]
[1742397981117,0.04867714,131.67,131.66,29.78]
[1742397982322,7.5957,131.65,131.64,0.0496162]
[1742397982520,21.54972192,131.65,131.64,0.0496162]
[1742397984630,7.5957,131.65,131.64,0.0496162]
[1742397992935,7.5954,131.66,131.64,0.0496162]
[1742397993334,0.04867714,131.67,131.64,0.0496162]
[1742397993939,7.5957,131.65,131.64,0.0496162]
[1742397997639,7.6,131.65,131.58,291.74]
[1742397997841,21.81314274,131.63,131.58,291.74]
[1742397998041,7.5992,131.59,131.58,291.74]
[1742397998240,21.81314274,131.63,131.58,291.74]
[1742397998840,0.05856095,131.62,131.59,0.04923303]
[1742397999444,7.5989,131.6,131.59,0.04923303]
[1742398002645,21.81314274,131.61,131.53,283.87314274]
[1742398002646,7.6009,131.56,131.53,262.06]
[1742398002849,7.6009,131.56,131.54,29.74]
[1742398003344,7.6006,131.57,131.54,37.3418]
[1742398003645,7.65914023,131.57,131.54,7.65834202]
[1742398003847,7.65914023,131.57,131.55,29.74]
[1742398004040,0.05854023,131.57,131.55,29.74]
[1742398005545,0.05854023,131.57,131.55,37.3414]
[1742398006241,7.65894023,131.57,131.55,29.74]
[1742398006545,0.05854023,131.57,131.55,29.74]
[1742398006945,0.05854023,131.57,131.55,37.3414]
[1742398007149,14.03786121,131.57,131.55,37.3414]
[1742398007345,0.05854023,131.57,131.55,29.74]
[1742398007543,0.05854023,131.57,131.56,7.6009]
[1742398012242,0.05854023,131.57,131.56,21.58022098]
[1742398012642,13.97932098,131.61,131.59,7.5987]
[1742398012850,13.97932098,131.61,131.59,37.3387]
[1742398013944,14.03229816,131.61,131.59,37.39309869]
[1742398014743,14.03229816,131.61,131.6,7.5986]
[1742398014948,0.05297718,131.61,131.6,7.5986]
[1742398019847,0.05297718,131.61,131.59,37.39329869]
[1742398020450,0.05297718,131.61,131.59,29.79439869]
[1742398020856,7.65147718,131.61,131.59,29.79439869]
[1742398021056,21.63079816,131.61,131.59,29.79439869]
[1742398021251,13.97932098,131.6,131.59,29.79439869]
[1742398021646,21.57792098,131.6,131.59,29.79439869]
[1742398022057,7.5986,131.6,131.59,29.79439869]
[1742398022754,21.63049816,131.61,131.59,37.39349869]
[1742398023053,7.65117718,131.61,131.59,37.39349869]
[1742398023556,0.05297718,131.61,131.59,37.39349869]
[1742398024961,7.65117718,131.61,131.59,37.39349869]
[1742398025256,0.05297718,131.61,131.6,7.5986]
[1742398026264,0.05297718,131.61,131.6,21.57792098]
[1742398032062,0.05297718,131.61,131.6,51.27792098]
[1742398032259,23.53902098,131.66,131.64,7.5962]
[1742398032563,15.94362098,131.66,131.64,29.7]
[1742398032765,15.90872098,131.67,131.64,29.7]
[1742398032959,15.90872098,131.67,131.64,37.296]
[1742398033162,15.90872098,131.67,131.64,29.7]
[1742398033664,15.96249479,131.67,131.64,29.756942]
[1742398033963,23.55729479,131.67,131.64,37.352942]
[1742398034165,14.03309479,131.67,131.64,29.756942]
[1742398034366,7.5957,131.66,131.64,29.756942]
[1742398035271,7.5957,131.66,131.64,37.353242]
[1742398036669,7.64857381,131.67,131.65,7.5956]
[1742398037872,7.5952,131.66,131.64,29.756942]
[1742398038373,21.62789479,131.67,131.64,29.756942]
[1742398039272,7.5951,131.66,131.64,37.352942]
[1742398042474,7.5951,131.66,131.64,29.756942]
[1742398043770,7.5951,131.66,131.64,37.353142]
[1742398044070,7.5951,131.66,131.64,29.756942]
[1742398045074,7.5951,131.66,131.64,37.353242]
[1742398045373,7.5951,131.66,131.64,29.756942]
[1742398046076,7.5957,131.65,131.64,29.756942]
[1742398046272,0.05377381,131.67,131.64,29.756942]
[1742398046573,7.64877381,131.67,131.64,37.353242]
[1742398047572,7.5954,131.66,131.64,29.756942]
[1742398049578,7.5954,131.66,131.64,37.353142]
[1742398051077,21.62789479,131.67,131.64,37.353142]
[1742398051276,7.64857381,131.67,131.64,37.353142]
[1742398051479,0.05377381,131.67,131.64,29.756942]
[1742398051973,0.05377381,131.67,131.65,7.5957]
[1742398052179,0.05377381,131.67,131.64,29.756942]
[1742398052674,0.05377381,131.67,131.65,7.5957]
[1742398053878,0.05377381,131.67,131.64,29.756942]
[1742398054078,14.03309479,131.67,131.64,29.756942]
[1742398054378,7.5954,131.66,131.64,29.756942]
[1742398055172,7.5954,131.66,131.64,37.353242]
[1742398055877,21.62789479,131.67,131.64,37.353242]
[1742398056077,21.62789479,131.67,131.65,7.5956]
[1742398056281,0.05377381,131.67,131.65,7.5956]
[1742398056977,0.05377381,131.67,131.64,37.352942]
[1742398057178,14.03309479,131.67,131.64,37.352942]
[1742398057377,14.03309479,131.67,131.64,29.756942]
[1742398057580,7.5954,131.66,131.64,29.756942]
[1742398057984,21.62799479,131.67,131.64,37.352942]
[1742398058381,10.64682203,131.67,131.64,37.352942]
[1742398059184,18.24162203,131.67,131.64,37.352942]
[1742398059385,7.5948,131.67,131.64,37.352942]
[1742398059682,0.04901542,131.67,131.65,7.5956]
[1742398059884,0.04901542,131.67,131.65,13.97932098]
[1742398060080,0.04901542,131.67,131.66,7.5951]
[1742398060479,14.0283364,131.67,131.64,0.056942]
[1742398060883,7.5957,131.65,131.64,0.056942]
[1742398061285,21.57502098,131.65,131.64,0.056942]
[1742398063587,7.5981,131.61,131.59,283.67812098]
[1742398063786,7.5981,131.61,131.6,29.66]
[1742398064283,13.97932098,131.63,131.6,29.66]
[1742398064284,21.57652098,131.63,131.6,29.66]
[1742398064480,13.97932098,131.65,131.6,29.66]
[1742398064787,0.04792826,131.63,131.6,29.71465233]
[1742398065085,0.04792826,131.63,131.61,13.97932098]
[1742398066285,14.02724924,131.63,131.6,0.05465233]
[1742398066481,13.97932098,131.62,131.6,0.05465233]
[1742398066881,7.598,131.61,131.6,0.05465233]
[1742398067388,21.57732098,131.61,131.6,0.05465233]
[1742398068578,7.598,131.61,131.6,0.05465233]
[1742398068784,0.04792826,131.63,131.6,0.05465233]
[1742398069293,7.64482826,131.63,131.61,7.5978]
[1742398069790,0.04792826,131.63,131.61,7.5978]
[1742398069988,0.04792826,131.63,131.62,37.2574]
[1742398070790,0.04792826,131.63,131.62,29.66]
[1742398071189,7.64482826,131.63,131.62,29.66]
[1742398071685,0.04792826,131.63,131.62,29.66]
[1742398071883,0.04792826,131.63,131.62,37.2574]
[1742398072285,0.04792826,131.63,131.62,29.66]
[1742398072584,7.64482826,131.63,131.62,29.66]
[1742398072791,0.04792826,131.63,131.62,29.66]
[1742398073987,0.04792826,131.63,131.62,37.2574]
[1742398075191,0.04792826,131.63,131.62,29.66]
[1742398075784,7.64482826,131.63,131.62,29.66]
[1742398076588,21.62414924,131.63,131.62,29.66]
[1742398076994,7.598,131.61,131.6,0.05465233]
[1742398078291,7.5999,131.58,131.55,13.97932098]
[1742398078484,13.97932098,131.59,131.56,29.66]
[1742398078687,3.9193,131.62,131.56,29.66]
[1742398078688,13.97932098,131.6,131.56,29.66]
[1742398078887,7.5994,131.59,131.57,7.6003]
[1742398079087,13.97932098,131.6,131.55,13.97932098]
[1742398079294,13.97932098,131.59,131.56,29.66]
[1742398079493,7.6003,131.57,131.56,29.71587399]
[1742398079792,13.97932098,131.58,131.56,29.71587399]
[1742398080194,21.57962098,131.58,131.56,29.71587399]
[1742398080387,21.57962098,131.58,131.56,37.31667399]
[1742398080591,13.97932098,131.58,131.56,37.31667399]
[1742398080793,21.62890597,131.59,131.56,37.31667399]
[1742398080993,21.62890597,131.59,131.56,29.71587399]
[1742398081294,21.62890597,131.59,131.57,7.6003]
[1742398081689,7.64958499,131.59,131.57,7.6003]
[1742398083195,0.04998499,131.59,131.58,7.5997]
[1742398085787,0.04998499,131.59,131.58,21.57902098]
[1742398086994,7.5971,131.63,131.6,7.5981]
[1742398087194,7.5971,131.63,131.61,29.66]
[1742398088194,7.65526191,131.63,131.61,29.71399234]
[1742398089198,0.05816191,131.63,131.61,37.31199234]
[1742398090490,7.65506191,131.63,131.61,37.31199234]
[1742398090793,7.65506191,131.63,131.61,29.71399234]
[1742398091300,0.05816191,131.63,131.61,37.31169234]
[1742398091504,0.05816191,131.63,131.61,29.71399234]
[1742398091694,21.57672098,131.62,131.61,0.05399234]
[1742398095302,51.21932098,131.62,131.54,277.36166015]
[1742398095498,13.97932098,131.58,131.55,29.64]
[1742398095898,7.6006,131.57,131.55,29.64]
[1742398096400,0.05824898,131.57,131.55,29.69494885]
[1742398096597,7.6009,131.56,131.55,29.69494885]
[1742398097298,7.65884898,131.57,131.55,29.69494885]
[1742398097897,13.97932098,131.56,131.55,0.05494885]
[1742398098093,13.97932098,131.56,131.5,29.64]
[1742398098297,13.97932098,131.55,131.5,43.61932098]
[1742398098493,13.97932098,131.54,131.49,46.37730128]
[1742398098695,13.97932098,131.51,131.49,42.28170128]
[1742398099096,13.97932098,131.51,131.48,262.14]
[1742398099301,14.02768142,131.51,131.49,0.0525241]
[1742398099503,0.04836044,131.51,131.49,0.0525241]
[1742398100601,14.02768142,131.51,131.49,0.0525241]
[1742398100797,14.02768142,131.51,131.49,29.6925241]
[1742398100999,21.63168142,131.51,131.49,0.0525241]
[1742398101204,0.04836044,131.51,131.49,0.0525241]
[1742398102506,0.04836044,131.51,131.5,7.6044]
[1742398108911,0.04836044,131.51,131.49,7.6573241]
[1742398110816,0.04836044,131.51,131.49,0.0525241]
[1742398111211,7.6044,131.5,131.49,0.0525241]
[1742398112110,21.86324356,131.5,131.44,1.32342036]
[1742398112310,21.86324356,131.5,131.43,291.9]
[1742398112512,21.86324356,131.5,131.43,262.26]
[1742398112712,21.86324356,131.5,131.43,299.5081]
[1742398112909,10.93162178,131.52,131.43,291.9]
[1742398113112,7.6047,131.5,131.47,7.6061]
[1742398113312,0.05732937,131.49,131.46,29.6978925]
[1742398113517,0.05732937,131.49,131.47,29.64]
[1742398113717,0.05732937,131.49,131.48,7.6055]
[1742398114523,0.05732937,131.49,131.47,37.2458]
[1742398115122,0.05732937,131.49,131.48,7.6055]
[1742398117319,0.05732937,131.49,131.47,37.2458]
[1742398117527,0.05732937,131.49,131.47,29.64]
[1742398117722,7.6055,131.48,131.47,29.64]
[1742398117923,0.05732937,131.49,131.46,0.0578925]
[1742398118222,7.6059,131.48,131.46,0.0578925]
[1742398118423,7.6059,131.48,131.46,7.6641925]
[1742398118723,0.05732937,131.49,131.46,7.6641925]
[1742398119023,0.05732937,131.49,131.46,0.0578925]
[1742398119519,7.66272937,131.49,131.46,7.6643925]
[1742398119920,0.05732937,131.49,131.46,7.6643925]
[1742398120419,7.66252937,131.49,131.46,7.6643925]
[1742398120924,0.05732937,131.49,131.47,7.606]
[1742398122224,0.05732937,131.49,131.48,7.6055]
[1742398122926,0.05732937,131.49,131.47,7.6058]
[1742398123425,0.05732937,131.49,131.47,7.6061]
[1742398123826,0.05732937,131.49,131.46,29.6978925]
[1742398124325,0.05732937,131.49,131.47,7.6061]
[1742398124526,0.05732937,131.49,131.46,29.6978925]
[1742398125025,0.05732937,131.49,131.47,7.6061]
[1742398125727,7.66232937,131.49,131.47,7.6061]
[1742398126524,7.66232937,131.49,131.46,37.3042925]
[1742398127329,7.6055,131.48,131.46,37.3042925]
[1742398127526,13.99541042,131.48,131.46,29.6978925]
[1742398127926,21.60151042,131.47,131.46,0.0578925]
[1742398133131,21.60121042,131.48,131.46,0.0578925]
[1742398133438,14.05273979,131.49,131.46,0.0578925]
[1742398133625,13.99541042,131.48,131.46,0.0578925]
[1742398133939,7.6061,131.47,131.46,0.0578925]
[1742398134236,21.60121042,131.48,131.46,7.6645925]
[1742398134429,7.6058,131.48,131.46,7.6645925]
[1742398135030,14.05273979,131.49,131.47,7.6061]
[1742398135336,0.05732937,131.49,131.47,7.6061]
[1742398135632,0.05732937,131.49,131.47,37.2461]
[1742398136236,0.05732937,131.49,131.48,7.6055]
[1742398137527,2.0042,131.53,131.5,7.604]
[1742398137836,13.99541042,131.54,131.5,7.604]
[1742398138034,7.6033,131.52,131.5,29.64]
[1742398138937,7.66076519,131.52,131.5,29.68902845]
[1742398139338,7.6038,131.51,131.5,29.68902845]
[1742398141337,21.59921042,131.51,131.5,29.68902845]
[1742398141538,21.59921042,131.51,131.5,0.04902845]
[1742398143434,21.59921042,131.51,131.5,2.845e-05]
[1742398143736,0.05746519,131.52,131.5,6.99773366]
[1742398143943,1.932,131.57,131.51,43.61541042]
[1742398144140,13.99541042,131.58,131.53,13.99541042]
[1742398144338,13.99541042,131.58,131.54,29.62]
[1742398144744,32.14024621,131.59,131.54,51.21711042]
[1742398145037,21.65232491,131.58,131.55,0.05664344]
[1742398145233,14.05252491,131.58,131.55,0.05664344]
[1742398145839,14.05252491,131.58,131.55,7.65804344]
[1742398146040,14.05252491,131.58,131.55,0.05664344]
[1742398147138,0.05711449,131.58,131.55,7.65804344]
[1742398148141,0.05711449,131.58,131.55,0.05664344]
[1742398149339,0.05711449,131.58,131.55,7.65784344]
[1742398150443,0.05711449,131.58,131.56,7.6009]
[1742398151944,0.05711449,131.58,131.57,7.6003]
[1742398152133,0.05711449,131.58,131.57,37.2003]
[1742398152939,0.05711449,131.58,131.57,29.6]
[1742398153538,7.65681449,131.58,131.57,29.6]
[1742398154149,0.05711449,131.58,131.57,29.6]
[1742398156640,22.43508876,131.71,131.57,40.52056218]
[1742398156842,22.43508876,131.71,131.59,21.84112436]
[1742398156843,21.84112436,131.68,131.59,21.84112436]
[1742398157043,21.84112436,131.68,131.6,29.6]
[1742398157242,7.5954,131.66,131.61,7.5977]
[1742398157645,29.43552436,131.68,131.63,7.5966]
[1742398157847,0.05393356,131.65,131.63,37.1966]
[1742398158446,0.05393356,131.65,131.64,7.5963]
[1742398162653,0.05393356,131.65,131.63,37.1966]